[Event "Sabato rapido!"]
[Site "Chess.com"]
[Date "2020.05.30"]
[Round "1"]
[White "Mrtre7"]
[Black "fausto2p"]
[Result "1-0"]
[WhiteElo "1460"]
[BlackElo "1186"]
[TimeControl "720+3"]
[EndTime "6:06:37 PDT"]
[Termination "Mrtre7 ha vinto per scaccomatto"]

1. d4 {[%clk 0:11:52.5]} 1... d5 {[%clk 0:12:00.3]} 2. c4 {[%clk 0:11:52.8]}
2... c6 {[%clk 0:11:59.7]} 3. Nf3 {[%clk 0:11:52]} 3... Nf6 {[%clk 0:12:00.8]}
4. e3 {[%clk 0:11:52.1]} 4... e6 {[%clk 0:11:40.6]} 5. Bd3 {[%clk 0:11:51.5]}
5... dxc4 {[%clk 0:11:39.7]} 6. Bxc4 {[%clk 0:11:52.4]} 6... b5 {[%clk
0:11:39.8]} 7. Bd3 {[%clk 0:11:54.1]} 7... Nbd7 {[%clk 0:11:26.9]} 8. Nc3 {[%clk
0:11:52.3]} 8... Bb4 {[%clk 0:11:27]} 9. O-O {[%clk 0:11:53]} 9... Bxc3 {[%clk
0:11:20.1]} 10. bxc3 {[%clk 0:11:53.9]} 10... O-O {[%clk 0:11:14.1]} 11. e4
{[%clk 0:11:55.6]} 11... Nb6 {[%clk 0:10:51.7]} 12. Qc2 {[%clk 0:11:48.9]} 12...
h6 {[%clk 0:10:38.7]} 13. e5 {[%clk 0:11:41.9]} 13... Nfd5 {[%clk 0:10:38.4]}
14. Re1 {[%clk 0:10:58.2]} 14... a5 {[%clk 0:10:21.5]} 15. Re4 {[%clk
0:10:52.8]} 15... b4 {[%clk 0:10:05.8]} 16. c4 {[%clk 0:10:40.8]} 16... Nc3
{[%clk 0:10:02.5]} 17. Rg4 {[%clk 0:10:31.9]} 17... Ba6 {[%clk 0:09:53.8]} 18.
Bxh6 {[%clk 0:10:15.5]} 18... Kh8 {[%clk 0:09:30.5]} 19. Bxg7+ {[%clk
0:10:14.1]} 19... Kg8 {[%clk 0:09:28.1]} 20. Bh7# {[%clk 0:10:13]} 1-0

[Event "Sabato rapido!"]
[Site "Chess.com"]
[Date "2020.05.30"]
[Round "1"]
[White "sergiodone"]
[Black "Carbon"]
[Result "0-1"]
[WhiteElo "1445"]
[BlackElo "1761"]
[TimeControl "720+3"]
[EndTime "6:15:38 PDT"]
[Termination "Carbon ha vinto per abbandono"]

1. e4 {[%clk 0:11:53.3]} 1... e6 {[%clk 0:11:58.5]} 2. d4 {[%clk 0:11:53.4]}
2... d5 {[%clk 0:11:59.2]} 3. Nd2 {[%clk 0:11:54.2]} 3... Nf6 {[%clk 0:11:59.2]}
4. Bd3 {[%clk 0:11:53.3]} 4... c5 {[%clk 0:11:51]} 5. c3 {[%clk 0:11:54.3]} 5...
cxd4 {[%clk 0:11:35.6]} 6. cxd4 {[%clk 0:11:54.4]} 6... dxe4 {[%clk 0:11:18.9]}
7. Nxe4 {[%clk 0:11:54.1]} 7... Nc6 {[%clk 0:11:13]} 8. Be3 {[%clk 0:11:29.7]}
8... Nxe4 {[%clk 0:10:42.6]} 9. Bxe4 {[%clk 0:11:25.4]} 9... Bb4+ {[%clk
0:10:42.7]} 10. Kf1 {[%clk 0:11:25.3]} 10... O-O {[%clk 0:10:35]} 11. Ne2 {[%clk
0:11:25.8]} 11... Ne7 {[%clk 0:10:02.9]} 12. g3 {[%clk 0:11:19.8]} 12... Nd5
{[%clk 0:09:59.1]} 13. Kg2 {[%clk 0:11:16.3]} 13... Bd7 {[%clk 0:09:52.8]} 14.
a3 {[%clk 0:11:16.6]} 14... Be7 {[%clk 0:09:45.8]} 15. Nc3 {[%clk 0:11:15.2]}
15... Bc6 {[%clk 0:09:34.2]} 16. Nxd5 {[%clk 0:11:07.4]} 16... Bxd5 {[%clk
0:09:33.7]} 17. Bxd5 {[%clk 0:11:08.1]} 17... Qxd5+ {[%clk 0:09:35.2]} 18. Qf3
{[%clk 0:11:09.3]} 18... Rfd8 {[%clk 0:09:27.5]} 19. Qxd5 {[%clk 0:10:50.1]}
19... Rxd5 {[%clk 0:09:28.3]} 20. b4 {[%clk 0:10:50.9]} 20... Bf6 {[%clk
0:09:29.3]} 21. Rhd1 {[%clk 0:10:46]} 21... Rad8 {[%clk 0:09:30.8]} 22. Rac1
{[%clk 0:10:42]} 22... h6 {[%clk 0:09:23.2]} 23. Rc7 {[%clk 0:10:40.4]} 23...
R5d7 {[%clk 0:09:23.5]} 24. Rdc1 {[%clk 0:10:40.7]} 24... Kf8 {[%clk 0:09:11.7]}
25. a4 {[%clk 0:10:34.9]} 25... Ke7 {[%clk 0:09:12.7]} 26. b5 {[%clk 0:10:34.4]}
26... Rxc7 {[%clk 0:09:12.4]} 27. Rxc7+ {[%clk 0:10:34.8]} 27... Rd7 {[%clk
0:09:11.3]} 28. Rc4 {[%clk 0:10:35.9]} 28... Kd8 {[%clk 0:09:05.9]} 29. Kf3
{[%clk 0:10:37.5]} 29... Rc7 {[%clk 0:09:05.9]} 30. Rxc7 {[%clk 0:09:33.2]}
30... Kxc7 {[%clk 0:09:05.5]} 31. Ke4 {[%clk 0:09:34.7]} 31... Kd6 {[%clk
0:09:03.7]} 32. Kd3 {[%clk 0:09:34.2]} 32... Kd5 {[%clk 0:09:04.7]} 33. h4
{[%clk 0:08:47.2]} 33... h5 {[%clk 0:08:59]} 34. Kc3 {[%clk 0:08:07.9]} 34... g6
{[%clk 0:08:54.8]} 35. Kb4 {[%clk 0:07:55.7]} 35... Bxd4 {[%clk 0:08:04.1]} 36.
a5 {[%clk 0:06:31.8]} 36... Bxe3 {[%clk 0:07:53.2]} 37. fxe3 {[%clk 0:06:33.1]}
37... Ke4 {[%clk 0:07:54]} 38. a6 {[%clk 0:06:28.4]} 38... b6 {[%clk 0:07:37.9]}
39. Kc4 {[%clk 0:06:27.4]} 39... Kxe3 {[%clk 0:07:38]} 40. Kc3 {[%clk
0:06:21.7]} 40... f6 {[%clk 0:07:26.1]} 41. Kc4 {[%clk 0:06:23.2]} 41... g5
{[%clk 0:07:23.8]} 42. Kc3 {[%clk 0:06:18.8]} 42... gxh4 {[%clk 0:07:21.7]} 43.
gxh4 {[%clk 0:06:19.6]} 43... f5 {[%clk 0:07:23]} 0-1

[Event "Sabato rapido!"]
[Site "Chess.com"]
[Date "2020.05.30"]
[Round "1"]
[White "pedrak"]
[Black "malberici"]
[Result "1-0"]
[WhiteElo "1692"]
[BlackElo "1389"]
[TimeControl "720+3"]
[EndTime "6:16:51 PDT"]
[Termination "pedrak ha vinto per abbandono"]

1. d4 {[%clk 0:12:02]} 1... Nf6 {[%clk 0:11:59.2]} 2. Nf3 {[%clk 0:12:02.7]}
2... g6 {[%clk 0:12:01.6]} 3. Bf4 {[%clk 0:12:02.8]} 3... Bg7 {[%clk 0:11:59.1]}
4. h3 {[%clk 0:12:04]} 4... O-O {[%clk 0:11:54.4]} 5. e3 {[%clk 0:12:05.1]} 5...
d6 {[%clk 0:11:45.6]} 6. Be2 {[%clk 0:12:03.8]} 6... c5 {[%clk 0:11:27.6]} 7. c3
{[%clk 0:12:03.9]} 7... Nc6 {[%clk 0:11:26.6]} 8. O-O {[%clk 0:12:04.6]} 8...
cxd4 {[%clk 0:11:23.7]} 9. exd4 {[%clk 0:12:05.1]} 9... Nd5 {[%clk 0:10:53.6]}
10. Bg3 {[%clk 0:12:04.9]} 10... e6 {[%clk 0:10:47.6]} 11. Re1 {[%clk
0:11:56.1]} 11... Qb6 {[%clk 0:10:33.1]} 12. Qb3 {[%clk 0:11:52.6]} 12... Qxb3
{[%clk 0:10:28.5]} 13. axb3 {[%clk 0:11:53.4]} 13... a6 {[%clk 0:10:22.7]} 14.
Bxd6 {[%clk 0:11:52.5]} 14... Rd8 {[%clk 0:10:18.9]} 15. Bg3 {[%clk 0:11:52.8]}
15... b5 {[%clk 0:10:01.4]} 16. b4 {[%clk 0:11:44]} 16... Bb7 {[%clk 0:09:55.9]}
17. Nbd2 {[%clk 0:11:39]} 17... Nb6 {[%clk 0:09:24.3]} 18. Nb3 {[%clk
0:11:34.4]} 18... Nc4 {[%clk 0:09:20.5]} 19. Bxc4 {[%clk 0:11:25.6]} 19... bxc4
{[%clk 0:09:21.2]} 20. Nc5 {[%clk 0:11:26.9]} 20... Rab8 {[%clk 0:09:13.5]} 21.
Bxb8 {[%clk 0:11:24.1]} 21... Rxb8 {[%clk 0:09:13.9]} 22. Nxb7 {[%clk
0:11:24.5]} 22... Rxb7 {[%clk 0:09:14.3]} 23. Rxa6 {[%clk 0:11:25.7]} 23... Rc7
{[%clk 0:08:51.8]} 24. Rea1 {[%clk 0:11:15.3]} 24... Bf8 {[%clk 0:08:51.2]} 25.
Ra8 {[%clk 0:11:11.5]} 25... Kg7 {[%clk 0:08:52]} 26. R8a6 {[%clk 0:10:38.6]}
26... h6 {[%clk 0:08:30.6]} 27. Rb6 {[%clk 0:10:35.2]} 27... Ne7 {[%clk
0:08:17.4]} 28. Raa6 {[%clk 0:10:24.4]} 28... Nf5 {[%clk 0:08:08.9]} 29. Rc6
{[%clk 0:10:19.2]} 29... Rb7 {[%clk 0:07:41.1]} 30. Rxc4 {[%clk 0:10:11.1]}
30... Bd6 {[%clk 0:07:35.6]} 31. g3 {[%clk 0:10:03.2]} 31... Bb8 {[%clk
0:07:11.7]} 32. Rc8 {[%clk 0:10:00.7]} 32... Nd6 {[%clk 0:07:01.1]} 33. Rd8
{[%clk 0:09:46.9]} 33... Nc4 {[%clk 0:06:51.2]} 34. b3 {[%clk 0:09:33.2]} 34...
Nb2 {[%clk 0:06:37.8]} 35. Rc8 {[%clk 0:09:00.6]} 35... Nd1 {[%clk 0:06:30.1]}
36. Kf1 {[%clk 0:08:48.5]} 36... Bc7 {[%clk 0:06:13.8]} 37. Rc6 {[%clk
0:08:41.1]} 37... Bb6 {[%clk 0:05:51.4]} 38. Ra8 {[%clk 0:08:33.5]} 38... Nb2
{[%clk 0:05:23.5]} 39. Ke2 {[%clk 0:08:28]} 39... Bc7 {[%clk 0:04:58]} 40. Ra2
{[%clk 0:08:24.4]} 1-0

[Event "Sabato rapido!"]
[Site "Chess.com"]
[Date "2020.05.30"]
[Round "1"]
[White "caramante"]
[Black "SanSecondoPR"]
[Result "1-0"]
[WhiteElo "1549"]
[BlackElo "1314"]
[TimeControl "720+3"]
[EndTime "6:17:07 PDT"]
[Termination "caramante ha vinto per scaccomatto"]

1. Nf3 {[%clk 0:12:00.1]} 1... Nc6 {[%clk 0:11:59.7]} 2. d4 {[%clk 0:11:58.6]}
2... d5 {[%clk 0:12:00]} 3. c3 {[%clk 0:12:00.1]} 3... Nf6 {[%clk 0:11:55.7]} 4.
g3 {[%clk 0:12:01.7]} 4... Bg4 {[%clk 0:11:53.9]} 5. Bg2 {[%clk 0:12:03.3]} 5...
e6 {[%clk 0:11:47.7]} 6. O-O {[%clk 0:12:04.4]} 6... Be7 {[%clk 0:11:45.3]} 7.
Bg5 {[%clk 0:12:04.9]} 7... Qd7 {[%clk 0:11:39.1]} 8. Nbd2 {[%clk 0:12:01.9]}
8... h6 {[%clk 0:11:37.8]} 9. Bxf6 {[%clk 0:12:02.4]} 9... gxf6 {[%clk
0:11:35.4]} 10. Qb3 {[%clk 0:11:58.5]} 10... Na5 {[%clk 0:11:21.5]} 11. Qc2
{[%clk 0:11:56.6]} 11... Bf5 {[%clk 0:11:16.9]} 12. e4 {[%clk 0:11:36.6]} 12...
Bh7 {[%clk 0:11:05.4]} 13. b4 {[%clk 0:11:33.2]} 13... Nc4 {[%clk 0:10:58.3]}
14. Nxc4 {[%clk 0:11:34]} 14... dxc4 {[%clk 0:10:56.1]} 15. Qe2 {[%clk
0:11:33.9]} 15... b5 {[%clk 0:10:27.6]} 16. Rad1 {[%clk 0:11:31.4]} 16... c6
{[%clk 0:09:58.8]} 17. Rfe1 {[%clk 0:11:26.8]} 17... O-O-O {[%clk 0:09:25.2]}
18. Bh3 {[%clk 0:11:20.8]} 18... Qc7 {[%clk 0:08:54.5]} 19. d5 {[%clk
0:11:13.8]} 19... Kb8 {[%clk 0:08:29.4]} 20. dxe6 {[%clk 0:11:09.7]} 20... fxe6
{[%clk 0:08:08.9]} 21. Bxe6 {[%clk 0:11:02.7]} 21... h5 {[%clk 0:07:50.3]} 22.
Nd4 {[%clk 0:10:36.8]} 22... h4 {[%clk 0:07:33.7]} 23. Nf5 {[%clk 0:10:26.8]}
23... hxg3 {[%clk 0:07:16.5]} 24. fxg3 {[%clk 0:10:25]} 24... Bxf5 {[%clk
0:07:12.8]} 25. Bxf5 {[%clk 0:10:16.3]} 25... Rdg8 {[%clk 0:07:03.6]} 26. Qf3
{[%clk 0:09:44.7]} 26... Bd6 {[%clk 0:06:36.8]} 27. Kg2 {[%clk 0:08:52.3]} 27...
Be5 {[%clk 0:05:26.5]} 28. Rd7 {[%clk 0:08:49]} 28... Qb6 {[%clk 0:05:15.8]} 29.
Qe3 {[%clk 0:08:07.6]} 29... Bxc3 {[%clk 0:04:50.9]} 30. Qxc3 {[%clk 0:07:42.9]}
30... Rxh2+ {[%clk 0:04:49.5]} 31. Kxh2 {[%clk 0:07:31.1]} 31... Qf2+ {[%clk
0:04:46.9]} 32. Kh1 {[%clk 0:07:26.3]} 32... Rh8+ {[%clk 0:04:42.5]} 33. Rh7
{[%clk 0:07:23.3]} 33... Rd8 {[%clk 0:04:05.4]} 34. Qe3 {[%clk 0:07:08.7]} 34...
Qb2 {[%clk 0:03:47.9]} 35. Qxa7# {[%clk 0:07:04.6]} 1-0

[Event "Sabato rapido!"]
[Site "Chess.com"]
[Date "2020.05.30"]
[Round "1"]
[White "sirmale49"]
[Black "crippo"]
[Result "0-1"]
[WhiteElo "1374"]
[BlackElo "1563"]
[TimeControl "720+3"]
[EndTime "6:20:30 PDT"]
[Termination "crippo ha vinto per tempo"]

1. f4 {[%clk 0:11:53.9]} 1... e6 {[%clk 0:09:42.5]} 2. Nf3 {[%clk 0:11:47.8]}
2... d5 {[%clk 0:09:36.4]} 3. g3 {[%clk 0:11:48]} 3... c5 {[%clk 0:09:35.5]} 4.
Bg2 {[%clk 0:11:49.6]} 4... Nf6 {[%clk 0:09:36.2]} 5. d3 {[%clk 0:11:50.2]} 5...
Nc6 {[%clk 0:09:37.5]} 6. O-O {[%clk 0:11:48.2]} 6... Bd6 {[%clk 0:09:37.3]} 7.
Nc3 {[%clk 0:11:44]} 7... g5 {[%clk 0:09:37.4]} 8. e3 {[%clk 0:11:42.2]} 8... d4
{[%clk 0:09:36.4]} 9. Ne4 {[%clk 0:11:35.5]} 9... Nxe4 {[%clk 0:09:37]} 10. dxe4
{[%clk 0:11:36.5]} 10... gxf4 {[%clk 0:09:36]} 11. exf4 {[%clk 0:11:37]} 11...
Bd7 {[%clk 0:09:32.8]} 12. Ng5 {[%clk 0:11:00.4]} 12... h6 {[%clk 0:09:18.8]}
13. Nh3 {[%clk 0:10:49.9]} 13... Qe7 {[%clk 0:09:17]} 14. e5 {[%clk 0:10:31.4]}
14... Bc7 {[%clk 0:09:16.6]} 15. a3 {[%clk 0:10:16.2]} 15... O-O-O {[%clk
0:09:16.8]} 16. Nf2 {[%clk 0:10:06.1]} 16... h5 {[%clk 0:09:17.4]} 17. Nd3
{[%clk 0:10:07.5]} 17... h4 {[%clk 0:09:17.8]} 18. g4 {[%clk 0:09:55.9]} 18...
h3 {[%clk 0:09:10.3]} 19. Be4 {[%clk 0:09:35.9]} 19... Rdg8 {[%clk 0:09:04.8]}
20. Bd2 {[%clk 0:08:59.6]} 20... Rh4 {[%clk 0:09:03.8]} 21. Nf2 {[%clk
0:08:39.8]} 21... c4 {[%clk 0:08:57.1]} 22. Qf3 {[%clk 0:07:42.2]} 22... f5
{[%clk 0:08:30.7]} 23. Bb4 {[%clk 0:05:35]} 23... fxg4 {[%clk 0:08:11.6]} 24.
Qg3 {[%clk 0:05:17.2]} 24... Qd8 {[%clk 0:08:03.8]} 25. Bc5 {[%clk 0:04:06.9]}
25... Bb6 {[%clk 0:08:02.1]} 26. Bxb6 {[%clk 0:03:11]} 26... axb6 {[%clk
0:08:00.8]} 27. Kh1 {[%clk 0:02:27.5]} 27... d3 {[%clk 0:07:35.9]} 28. cxd3
{[%clk 0:02:24.8]} 28... cxd3 {[%clk 0:07:37.2]} 29. Rad1 {[%clk 0:02:18.4]}
29... Nd4 {[%clk 0:07:37.4]} 30. Rxd3 {[%clk 0:01:58.4]} 30... Nf5 {[%clk
0:07:37.2]} 31. Rc1+ {[%clk 0:01:41.1]} 31... Kb8 {[%clk 0:07:36.8]} 32. Bxf5
{[%clk 0:01:31.8]} 32... exf5 {[%clk 0:07:36.8]} 33. Rcd1 {[%clk 0:01:31.3]}
33... Bc6+ {[%clk 0:07:34.3]} 34. Kg1 {[%clk 0:01:24.2]} 34... Qe7 {[%clk
0:07:34.7]} 35. Rd6 {[%clk 0:00:49.5]} 35... Rh7 {[%clk 0:07:29.9]} 0-1

[Event "Sabato rapido!"]
[Site "Chess.com"]
[Date "2020.05.30"]
[Round "1"]
[White "OMatteoWuO"]
[Black "APipitone"]
[Result "1-0"]
[WhiteElo "1227"]
[BlackElo "1454"]
[TimeControl "720+3"]
[EndTime "6:28:57 PDT"]
[Termination "OMatteoWuO ha vinto per tempo"]

1. d4 {[%clk 0:12:02.9]} 1... Nf6 {[%clk 0:11:54.2]} 2. c4 {[%clk 0:12:02.6]}
2... c5 {[%clk 0:11:53.2]} 3. d5 {[%clk 0:12:02.1]} 3... e6 {[%clk 0:11:53.6]}
4. Nc3 {[%clk 0:12:03.6]} 4... exd5 {[%clk 0:11:54.2]} 5. cxd5 {[%clk
0:11:44.1]} 5... d6 {[%clk 0:11:54.7]} 6. Nf3 {[%clk 0:11:38]} 6... g6 {[%clk
0:11:52.7]} 7. e4 {[%clk 0:11:11.9]} 7... Nbd7 {[%clk 0:11:48.8]} 8. Be2 {[%clk
0:10:45.7]} 8... a6 {[%clk 0:11:48.6]} 9. a4 {[%clk 0:10:41.5]} 9... Bg7 {[%clk
0:11:42.4]} 10. O-O {[%clk 0:10:36.7]} 10... O-O {[%clk 0:11:36.8]} 11. Be3
{[%clk 0:10:14.2]} 11... Re8 {[%clk 0:11:26.1]} 12. Bd3 {[%clk 0:09:44.7]} 12...
Ne5 {[%clk 0:11:04.1]} 13. Nxe5 {[%clk 0:09:39.3]} 13... Rxe5 {[%clk 0:11:04.2]}
14. Qd2 {[%clk 0:09:33.8]} 14... Bd7 {[%clk 0:10:02.6]} 15. Bf4 {[%clk
0:09:18.8]} 15... Nh5 {[%clk 0:09:30.5]} 16. Bxe5 {[%clk 0:09:01.3]} 16... Bxe5
{[%clk 0:09:29.3]} 17. f4 {[%clk 0:08:44.7]} 17... Bd4+ {[%clk 0:09:26.5]} 18.
Kh1 {[%clk 0:08:43.1]} 18... Qh4 {[%clk 0:09:06.2]} 19. Rf3 {[%clk 0:07:50.1]}
19... Bg4 {[%clk 0:08:42.4]} 20. Ne2 {[%clk 0:06:50.4]} 20... Bxf3 {[%clk
0:08:26.2]} 21. gxf3 {[%clk 0:06:44.7]} 21... Bf2 {[%clk 0:08:00.5]} 22. Kg2
{[%clk 0:05:33.4]} 22... Re8 {[%clk 0:06:56.7]} 23. Rf1 {[%clk 0:05:06.9]} 23...
Bd4 {[%clk 0:06:45.6]} 24. Nxd4 {[%clk 0:05:03.4]} 24... Nxf4+ {[%clk
0:06:39.1]} 25. Kh1 {[%clk 0:04:54.5]} 25... cxd4 {[%clk 0:06:36.8]} 26. Rg1
{[%clk 0:04:33.5]} 26... h5 {[%clk 0:05:40.6]} 27. b4 {[%clk 0:03:40.3]} 27...
Re5 {[%clk 0:05:34.1]} 28. b5 {[%clk 0:03:38.5]} 28... axb5 {[%clk 0:05:28.9]}
29. Bxb5 {[%clk 0:03:38.2]} 29... Nh3 {[%clk 0:04:40.7]} 30. Rg3 {[%clk
0:03:28.3]} 30... g5 {[%clk 0:03:48.7]} 31. Bd7 {[%clk 0:03:23.9]} 31... Nf4
{[%clk 0:03:39.1]} 32. Bf5 {[%clk 0:02:55.9]} 32... Re8 {[%clk 0:03:03.1]} 33.
a5 {[%clk 0:02:08.3]} 33... Ra8 {[%clk 0:02:54.6]} 34. Qxd4 {[%clk 0:01:17.7]}
34... Rxa5 {[%clk 0:02:47.4]} 35. Qd2 {[%clk 0:01:12.4]} 35... Ra1+ {[%clk
0:02:33.2]} 36. Rg1 {[%clk 0:01:10.7]} 36... Rxg1+ {[%clk 0:02:20.1]} 37. Kxg1
{[%clk 0:01:12.4]} 37... Nh3+ {[%clk 0:01:59.8]} 38. Bxh3 {[%clk 0:01:13.7]}
38... Qxh3 {[%clk 0:02:00.6]} 39. Qxg5+ {[%clk 0:01:15.3]} 39... Kf8 {[%clk
0:01:56]} 40. Qd8+ {[%clk 0:01:16.4]} 40... Kg7 {[%clk 0:01:54.8]} 41. Qg5+
{[%clk 0:01:17.6]} 41... Kf8 {[%clk 0:01:42]} 42. Qd8+ {[%clk 0:01:18.8]} 42...
Kg7 {[%clk 0:01:40.5]} 43. Qxd6 {[%clk 0:01:19.7]} 43... Qc8 {[%clk 0:01:27.7]}
44. Qg3+ {[%clk 0:01:16.8]} 44... Kh7 {[%clk 0:01:25.4]} 45. d6 {[%clk
0:01:14.3]} 45... Qc1+ {[%clk 0:01:22.2]} 46. Kg2 {[%clk 0:01:14]} 46... Qd2+
{[%clk 0:01:22.2]} 47. Kh3 {[%clk 0:01:14.1]} 47... b5 {[%clk 0:01:04.1]} 48.
Qe5 {[%clk 0:01:04.4]} 48... b4 {[%clk 0:00:52.1]} 49. Qxh5+ {[%clk 0:01:03.3]}
49... Kg8 {[%clk 0:00:47.8]} 50. Qg4+ {[%clk 0:01:02.3]} 50... Kf8 {[%clk
0:00:39.8]} 51. Qc8+ {[%clk 0:01:01.7]} 51... Kg7 {[%clk 0:00:38.2]} 52. d7
{[%clk 0:00:58.8]} 52... b3 {[%clk 0:00:28.1]} 53. d8=Q {[%clk 0:00:59.3]} 53...
Qh6+ {[%clk 0:00:24.3]} 54. Qh4 {[%clk 0:01:00.7]} 1-0

[Event "Sabato rapido!"]
[Site "Chess.com"]
[Date "2020.05.30"]
[Round "2"]
[White "Mrtre7"]
[Black "pedrak"]
[Result "0-1"]
[WhiteElo "1456"]
[BlackElo "1695"]
[TimeControl "720+3"]
[EndTime "6:42:05 PDT"]
[Termination "pedrak ha vinto per abbandono"]

1. d4 {[%clk 0:11:59.3]} 1... e6 {[%clk 0:11:58]} 2. c4 {[%clk 0:12:01]} 2... f5
{[%clk 0:11:56.1]} 3. Nc3 {[%clk 0:11:46.3]} 3... Nf6 {[%clk 0:11:56.8]} 4. Bg5
{[%clk 0:11:47.3]} 4... Be7 {[%clk 0:11:54.7]} 5. e4 {[%clk 0:11:44.4]} 5...
Nxe4 {[%clk 0:11:52.2]} 6. Bxe7 {[%clk 0:11:45.2]} 6... Qxe7 {[%clk 0:11:53.1]}
7. Nxe4 {[%clk 0:11:35.9]} 7... fxe4 {[%clk 0:11:53.9]} 8. Qh5+ {[%clk
0:11:32.4]} 8... Qf7 {[%clk 0:11:54.7]} 9. Qe5 {[%clk 0:11:02.4]} 9... O-O
{[%clk 0:11:49.5]} 10. f3 {[%clk 0:08:14.8]} 10... exf3 {[%clk 0:11:45.3]} 11.
Nxf3 {[%clk 0:08:16.7]} 11... d6 {[%clk 0:11:46.1]} 12. Qg3 {[%clk 0:08:06.2]}
12... Nc6 {[%clk 0:11:35.9]} 13. Bd3 {[%clk 0:07:30]} 13... Qf4 {[%clk
0:11:28.6]} 14. Qh3 {[%clk 0:04:33.6]} 14... Qe3+ {[%clk 0:11:25.6]} 15. Be2
{[%clk 0:04:27.5]} 15... Nxd4 {[%clk 0:11:17.3]} 16. Nxd4 {[%clk 0:04:12.8]}
16... Qf2+ {[%clk 0:11:08.6]} 17. Kd1 {[%clk 0:04:07]} 17... Qxd4+ {[%clk
0:11:09.6]} 18. Bd3 {[%clk 0:03:59.7]} 18... g6 {[%clk 0:10:56.4]} 19. Qg3
{[%clk 0:03:35.3]} 19... e5 {[%clk 0:10:53.2]} 20. Kc2 {[%clk 0:03:28.9]} 20...
Bf5 {[%clk 0:10:35.3]} 21. Raf1 {[%clk 0:03:12.2]} 21... Qxc4+ {[%clk
0:10:34.2]} 22. Kb1 {[%clk 0:03:06.1]} 22... Qxd3+ {[%clk 0:10:32]} 23. Qxd3
{[%clk 0:03:07.1]} 0-1

[Event "Sabato rapido!"]
[Site "Chess.com"]
[Date "2020.05.30"]
[Round "2"]
[White "SanSecondoPR"]
[Black "sergiodone"]
[Result "1-0"]
[WhiteElo "1326"]
[BlackElo "1434"]
[TimeControl "720+3"]
[EndTime "6:43:01 PDT"]
[Termination "SanSecondoPR ha vinto per abbandono"]

1. e4 {[%clk 0:12:02.9]} 1... c5 {[%clk 0:11:55.2]} 2. Nf3 {[%clk 0:12:01.8]}
2... d6 {[%clk 0:11:55.7]} 3. d4 {[%clk 0:12:03]} 3... cxd4 {[%clk 0:11:56.9]}
4. Nxd4 {[%clk 0:12:02.4]} 4... e6 {[%clk 0:11:58.2]} 5. Nc3 {[%clk 0:12:01.6]}
5... Be7 {[%clk 0:11:59.7]} 6. Bb5+ {[%clk 0:11:58.2]} 6... Bd7 {[%clk
0:12:00.3]} 7. O-O {[%clk 0:11:56.7]} 7... a6 {[%clk 0:11:58.3]} 8. Bc4 {[%clk
0:11:53.6]} 8... Qc7 {[%clk 0:11:58]} 9. Bb3 {[%clk 0:11:53.2]} 9... b5 {[%clk
0:11:57.3]} 10. a3 {[%clk 0:11:47.5]} 10... Nf6 {[%clk 0:11:56.8]} 11. Qe2
{[%clk 0:11:40.8]} 11... Nc6 {[%clk 0:11:54.6]} 12. Nf3 {[%clk 0:11:33.3]} 12...
h5 {[%clk 0:11:50.5]} 13. Bf4 {[%clk 0:11:22.8]} 13... Ne5 {[%clk 0:11:51.5]}
14. Nd2 {[%clk 0:10:48.6]} 14... Rc8 {[%clk 0:11:45.2]} 15. h3 {[%clk
0:10:40.1]} 15... Nc4 {[%clk 0:11:14.2]} 16. Rab1 {[%clk 0:10:16.3]} 16... Nxd2
{[%clk 0:10:59.8]} 17. Qxd2 {[%clk 0:10:06.2]} 17... Bc6 {[%clk 0:10:58.8]} 18.
f3 {[%clk 0:09:53.1]} 18... Bb7 {[%clk 0:10:47.6]} 19. Rfd1 {[%clk 0:09:41.8]}
19... Rd8 {[%clk 0:10:39.1]} 20. Qf2 {[%clk 0:09:36]} 20... h4 {[%clk
0:10:35.4]} 21. Be3 {[%clk 0:09:29.1]} 21... Rc8 {[%clk 0:10:28.1]} 22. Bb6
{[%clk 0:09:18.8]} 22... Qb8 {[%clk 0:10:28.3]} 23. a4 {[%clk 0:09:14.8]} 23...
b4 {[%clk 0:10:12.3]} 24. Na2 {[%clk 0:09:01.3]} 24... d5 {[%clk 0:10:08]} 25.
a5 {[%clk 0:08:43.1]} 25... Rc6 {[%clk 0:09:51.9]} 26. Ba4 {[%clk 0:08:41.6]}
26... Kf8 {[%clk 0:09:43.2]} 27. Bxc6 {[%clk 0:08:41.1]} 27... Bxc6 {[%clk
0:09:44.7]} 28. Bc5 {[%clk 0:08:27.5]} 28... dxe4 {[%clk 0:09:36.2]} 29. Bxe7+
{[%clk 0:08:27.6]} 29... Kxe7 {[%clk 0:09:37]} 30. Qc5+ {[%clk 0:08:26.7]} 30...
Ke8 {[%clk 0:09:04.2]} 31. Qxc6+ {[%clk 0:08:26.5]} 31... Kf8 {[%clk 0:09:05.3]}
32. Qd6+ {[%clk 0:08:24.2]} 32... Qxd6 {[%clk 0:09:01.5]} 33. Rxd6 {[%clk
0:08:23.8]} 33... Ke7 {[%clk 0:09:03.2]} 34. Rxa6 {[%clk 0:08:23.6]} 34... exf3
{[%clk 0:08:57.8]} 35. Nxb4 {[%clk 0:08:18.4]} 35... Ne4 {[%clk 0:08:50.8]} 36.
gxf3 {[%clk 0:08:11.7]} 36... Nd2 {[%clk 0:08:46.9]} 37. Rd1 {[%clk 0:07:56.6]}
37... Nxf3+ {[%clk 0:08:48.3]} 38. Kf2 {[%clk 0:07:50.4]} 38... Ne5 {[%clk
0:08:49.5]} 39. Nc6+ {[%clk 0:07:48.6]} 39... Nxc6 {[%clk 0:08:45.5]} 40. Rxc6
{[%clk 0:07:48.2]} 40... g5 {[%clk 0:08:46.2]} 41. Rc7+ {[%clk 0:07:42.7]} 41...
Kf6 {[%clk 0:08:47.4]} 42. Rdd7 {[%clk 0:07:40.9]} 42... Rh7 {[%clk 0:08:39.9]}
43. a6 {[%clk 0:07:40.1]} 43... g4 {[%clk 0:08:41.6]} 44. Kg2 {[%clk 0:07:26.3]}
44... gxh3+ {[%clk 0:08:42.1]} 45. Kxh3 {[%clk 0:07:26.2]} 45... Rg7 {[%clk
0:08:42.6]} 46. a7 {[%clk 0:07:21.9]} 46... Rg3+ {[%clk 0:08:38.2]} 47. Kxh4
{[%clk 0:07:18.8]} 47... Rg2 {[%clk 0:08:39.3]} 48. a8=Q {[%clk 0:07:14.4]}
48... Rh2+ {[%clk 0:08:37.1]} 49. Kg3 {[%clk 0:07:12.9]} 49... Rh7 {[%clk
0:08:29.7]} 50. Qf3+ {[%clk 0:07:10.2]} 1-0